[Event "FRA-ch Teams Top 16-A 2022"]
[Site "Chartres"]
[Date "2022.06.15"]
[Round "7.4"]
[White "Loiseau, Quentin"]
[Black "Naiditsch, Arkadij"]
[Result "0-1"]
[ECO "C47"]
[WhiteElo "2445"]
[BlackElo "2654"]
[Annotator "TA"]
[PlyCount "72"]
[EventDate "2022.06.09"]
[EventType "team-tourn"]
[EventCountry "FRA"]
[SourceTitle "playchess.com"]
[Source "ChessBase"]
[SourceQuality "1"]
[TimeControl "40/5400+30:1800+30"]

{[%evp 16,72,17,9,41,4,12,0,8,0,12,0,0,0,24,8,12,0,8,14,0,0,0,0,18,0,0,-18,-18,-18,-18,-20,-18,-33,-39,-27,-17,-292,-314,-449,-453,-445,-425,-427,-413,-680,-680,-670,-661,-640,-608,-979,-979,-931,-623,-799,-762,-650,-635]} 1. e4 {[%emt 0:00:02]} e5 {[%emt 0:03:20]} 2. Nf3 {[%emt 0:00:12]} Nc6 {[%emt 0:00:12]} 3. d4 {[%emt 0:00:42]} exd4 {[%emt 0:00:10]} 4. Nxd4 {[%emt 0:00:02]} Nf6 {[%emt 0:00:13]} 5. Nc3 {[%emt 0:00:04]} Bb4 {[%emt 0:00:18]} 6. Nxc6 {[%emt 0:00:17]} bxc6 {[%emt 0:00:07]} 7. Bd3 {[%emt 0:00:04]} O-O {[%emt 0:00:08]} 8. O-O {[%emt 0:00:27]} Re8 {[%emt 0:00:05]} 9. Bg5 {[%emt 0:05:20] 9.Bg5 is better than 9.Qf3.} Rb8 {[%emt 0:03:57] C47: Scotch Four Knights and Four Knights with 4 g3.} 10. Qf3 {[%emt 0:10:09]} (10. f4 $5 {[%cal Re4e5]} h6 11. Bh4 $11) 10... Bd6 {[%emt 0:13:23]} 11. Bxf6 {[%emt 0:21:56] is the legacy move (11.Rab1).} Qxf6 {[%emt 0:00:31] The position is equal.} 12. Qxf6 {[%emt 0:00:06]} gxf6 {[%emt 0:00:05]} 13. Rab1 {[%emt 0:00:37]} Be5 {[%emt 0:03:04]} 14. Nd1 {[%emt 0:03:37] [#]} Bd4 $146 {[%emt 0:06:04]} ({Predecessor:} 14... d5 15. exd5 cxd5 16. Ne3 c6 17. b3 Bc3 18. Nd1 Ba5 19. Ne3 Be6 20. c4 d4 {0-1 (45) Toczek,G (2271)-Barski,R (2442) Szklarska Poreba 2021}) 15. c3 {[%emt 0:01:38]} Bb6 {[%emt 0:00:09]} 16. Ne3 {[%emt 0:06:29]} Bxe3 {[%emt 0:08:09]} 17. fxe3 {[%emt 0:00:08]} Kg7 {[%emt 0:01:11]} 18. Rf4 {[%emt 0:00:10]} c5 {[%emt 0:04:05]} 19. b3 {[%emt 0:01:58]} Rb6 {[%emt 0:06:55]} 20. Rbf1 {[%emt 0:00:55]} Rd6 {[%emt 0:20:16]} 21. Bc4 {[%emt 0:03:21]} Bb7 {[%emt 0:01:39]} 22. Rg4+ {[%emt 0:01:10]} Kf8 {[%emt 0:00:22]} 23. Rgf4 {[%emt 0:04:34]} Rxe4 {[%emt 0:06:01]} 24. Rxf6 {[%emt 0:00:49]} Rxf6 {[%emt 0:00:10]} 25. Rxf6 $11 {[%emt 0:00:18][%mdl 4096] Endgame KRB-KRB} d5 {[%emt 0:00:09]} 26. Ba6 {[%emt 0:06:07][%mdl 8192] This costs White the game.} (26. Be2 $1 $11) 26... Kg7 $19 {[%emt 0:01:17]} 27. Rxf7+ {[%emt 0:01:18]} (27. Bxb7 {might work better.} Kxf6 28. Kf2) 27... Kxf7 {[%emt 0:00:08]} 28. Bxb7 {[%emt 0:00:02]} Rxe3 {[%emt 0:00:45] [#] Threatens to win with ...Ke6.} 29. Bxd5+ {[%emt 0:00:06] KR-KB} Kf6 {[%emt 0:00:11]} 30. a4 {[%emt 0:01:59]} (30. Kf1 $142) 30... Rxc3 {[%emt 0:00:24] Black is clearly winning.} 31. Kf2 {[%emt 0:00:10]} Ke5 {[%emt 0:00:26]} 32. Bg8 {[%emt 0:00:46]} h6 {[%emt 0:00:06]} 33. h3 {[%emt 0:00:10]} Kf4 {[%emt 0:00:14] Inhibits g3+.} 34. Ke2 {[%emt 0:00:51]} c6 {[%emt 0:04:23]} 35. Kd2 {[%emt 0:00:40]} Rg3 {[%emt 0:00:12][%csl LRg2,LRg8]} 36. Be6 {[%emt 0:00:02]} Ke5 {[%emt 0:00:24] Weighted Error Value: White=0.63/Black=0.15 (very precise)} 0-1

[Event "FRA-ch Teams Top 16-A 2022"]
[Site "Chartres"]
[Date "2022.06.15"]
[Round "7.5"]
[White "Fressinet, Laurent"]
[Black "Barbot, Pierre"]
[Result "1/2-1/2"]
[ECO "D02"]
[WhiteElo "2630"]
[BlackElo "2450"]
[Annotator "TA"]
[PlyCount "82"]
[EventDate "2022.06.09"]
[EventType "team-tourn"]
[EventCountry "FRA"]
[SourceTitle "playchess.com"]
[Source "ChessBase"]
[SourceQuality "1"]
[TimeControl "40/5400+30:1800+30"]

{[%evp 9,82,25,25,21,39,-5,24,20,20,22,22,21,20,17,28,24,31,19,49,43,51,46,57,47,57,52,51,21,15,32,25,19,19,15,13,10,18,0,0,0,0,0,0,-15,0,-13,0,-11,23,31,23,21,18,19,73,89,74,81,120,119,120,120,120,0,0,0,0,0,0,-30,-15,-18,-13,-3,-5]} 1. Nf3 {[%emt 0:02:19]} Nf6 {[%emt 0:00:05]} 2. g3 {[%emt 0:00:15]} d5 {[%emt 0:00:08]} 3. Bg2 {[%emt 0:00:09]} Nbd7 {[%emt 0:00:04]} 4. d4 {[%emt 0:01:03]} Nb6 {[%emt 0:00:42]} 5. Nc3 {[%emt 0:02:46]} Bf5 {[%emt 0:00:39]} 6. Nh4 {[%emt 0:02:49] D02: 1 d4 d5 2 Nf3 sidelines, including 2...Nf6 3 g3 and 2...Nf6 3 Bf4.} e6 {[%emt 0:00:05] [#]} 7. Bg5 $146 {[%emt 0:06:08]} ({Predecessor:} 7. O-O c6 8. f3 Bg6 9. e4 Bb4 10. e5 Nfd7 11. Ne2 Be7 12. Nxg6 hxg6 13. c3 {1-0 (73) Oparin,G (2652)-Alekseenko,K (2696) Chess.com INT 2021}) 7... Be7 {[%emt 0:16:29]} 8. Nxf5 {[%emt 0:01:53] White has an edge.} exf5 {[%emt 0:00:28]} 9. Bxf6 {[%emt 0:00:05]} Bxf6 {[%emt 0:00:04]} 10. Qd3 {[%emt 0:04:05]} c6 {[%emt 0:03:58]} 11. e3 {[%emt 0:03:04]} ({Don't play} 11. Qxf5 Bxd4 12. e4 O-O $15) 11... g6 {[%emt 0:01:26]} 12. b3 {[%emt 0:01:10]} O-O {[%emt 0:00:23]} 13. O-O {[%emt 0:02:51]} Qe7 {[%emt 0:02:24]} 14. a4 {[%emt 0:03:59]} a5 {[%emt 0:00:04]} 15. Ne2 {[%emt 0:00:54]} Rfd8 {[%emt 0:00:03]} 16. Rfd1 {[%emt 0:04:05]} h5 {[%emt 0:06:15]} 17. h4 {[%emt 0:03:03]} Bg7 {[%emt 0:00:04]} 18. Rab1 {[%emt 0:05:00]} Nd7 {[%emt 0:08:37]} 19. c4 {[%emt 0:05:13]} Nf6 {[%emt 0:00:09]} 20. cxd5 {[%emt 0:08:13]} Nxd5 {[%emt 0:04:23]} 21. Bxd5 {[%emt 0:03:44]} Rxd5 {[%emt 0:00:12]} 22. Nf4 {[%emt 0:00:40]} Rd6 {[%emt 0:17:05]} 23. Qf1 {[%emt 0:04:28]} Rad8 {[%emt 0:00:58]} 24. Rdc1 {[%emt 0:04:41]} Bh6 {[%emt 0:01:12]} 25. Ng2 {[%emt 0:03:20]} Rd5 {[%emt 0:03:14]} 26. Qc4 {[%emt 0:02:19]} Qe4 {[%emt 0:00:37]} 27. Qc2 {[%emt 0:01:15]} Qe7 {[%emt 0:01:43]} 28. Qc3 {[%emt 0:02:57]} Qe4 {[%emt 0:03:17][%cal Of5f4]} 29. b4 {[%emt 0:06:43]} axb4 {[%emt 0:01:10]} 30. Rxb4 {[%emt 0:00:42]} c5 {[%emt 0:03:56]} 31. dxc5 {[%emt 0:00:22]} Rd1+ {[%emt 0:00:04]} (31... Qf3 $1 $11 {remains equal.} 32. Rf1 R5d7) 32. Rxd1 $16 {[%emt 0:00:06]} Rxd1+ {[%emt 0:00:03]} 33. Kh2 {[%emt 0:02:16]} Qf3 {[%emt 0:00:04]} 34. Qb3 {[%emt 0:00:38]} Rd7 {[%emt 0:04:01] [#]} 35. Qc2 {[%emt 0:05:26]} Bf8 {[%emt 0:09:34]} 36. Rd4 {[%emt 0:04:17]} ({White should play} 36. Ne1 $16 Qd5 37. Rd4) 36... Rxd4 $1 $11 {[%emt 0:05:54]} 37. exd4 {[%emt 0:00:26]} Bg7 {[%emt 0:00:03]} 38. Qd2 {[%emt 0:05:17] Hoping for d5.} Qd5 {[%emt 0:00:04]} 39. Nf4 {[%emt 0:00:32]} Qxd4 {[%emt 0:00:09]} 40. Qa2 {[%emt 0:00:42]} Qxc5 {[%emt 0:04:11]} 41. Nxg6 $1 {[%emt 0:04:38]} Bh6 {[%emt 0:00:03] Weighted Error Value: White=0.10 (very precise) /Black=0.09 (flawless)} (41... Qd6 $5 42. Nf4 Be5 $11) 1/2-1/2

[Event "FRA-ch Teams Top 16-A 2022"]
[Site "Chartres"]
[Date "2022.06.15"]
[Round "7.6"]
[White "Riff, Vincent"]
[Black "Le Roux, Jean-Pierre"]
[Result "0-1"]
[ECO "B12"]
[WhiteElo "2397"]
[BlackElo "2513"]
[Annotator "TA"]
[PlyCount "72"]
[EventDate "2022.06.09"]
[EventType "team-tourn"]
[EventCountry "FRA"]
[SourceTitle "playchess.com"]
[Source "ChessBase"]
[SourceQuality "1"]
[TimeControl "40/5400+30:1800+30"]

{[%evp 11,72,13,10,-8,14,16,23,15,78,76,78,86,119,114,114,118,114,100,75,93,96,74,81,67,85,64,115,118,163,98,75,112,90,79,74,-22,-21,-32,-5,-29,0,0,0,0,0,-297,-285,-389,-372,-406,-404,-6335,-6327,-1817,-389,-29975,-29978,-29987,-29988,-29991,-29992,-29992,-1191]} 1. e4 {[%emt 0:00:47]} c6 {[%emt 0:01:11]} 2. d4 {[%emt 0:02:05]} d5 {[%emt 0:00:07]} 3. e5 {[%emt 0:00:07]} Bf5 {[%emt 0:03:06]} 4. h4 {[%emt 0:00:36]} h5 {[%emt 0:04:01]} 5. Bd3 {[%emt 0:01:32]} Bxd3 {[%emt 0:00:25]} 6. Qxd3 {[%emt 0:00:05]} e6 {[%emt 0:02:35]} 7. Bg5 {[%emt 0:00:41] B12: Caro-Kann: Advance Variation.} Qa5+ {[%emt 0:00:31]} (7... Qb6 $5 {[%cal Rb6b2]}) 8. Nd2 {[%emt 0:01:18]} Ne7 {[%emt 0:11:06]} 9. Ne2 {[%emt 0:01:41] White has an edge.} Qa6 {[%emt 0:09:24]} (9... c5 $11 {remains equal.}) 10. c4 $1 $16 {[%emt 0:02:20]} Nf5 {[%emt 0:17:41]} 11. O-O {[%emt 0:08:43]} Nd7 {[%emt 0:10:25]} 12. Ng3 $1 {[%emt 0:02:28]} g6 {[%emt 0:00:16]} 13. Nxf5 {[%emt 0:02:09]} gxf5 {[%emt 0:00:07]} 14. Rfc1 {[%emt 0:00:54]} dxc4 {[%emt 0:04:05]} 15. Nxc4 {[%emt 0:04:23]} Nb6 {[%emt 0:01:21]} 16. b3 {[%emt 0:05:25]} Nd5 {[%emt 0:07:15]} 17. a4 {[%emt 0:01:46] [#]} Bb4 $146 {[%emt 0:05:10]} ({Predecessor:} 17... Kd7 18. Qf3 Be7 19. Bxe7 Nxe7 20. b4 b5 21. axb5 Qxb5 22. Nd6 Qb6 23. b5 cxb5 24. Rc5 a6 25. Rac1 Ra7 26. d5 exd5 27. Rxd5 Ke6 28. Rd2 {1-0 (28) Kunal,M (2354)-Gunasekaran,K (2077) Trichy 2017}) 18. Qf3 {[%emt 0:01:58]} Kf8 {[%emt 0:03:29]} (18... Kd7 $14) 19. a5 {[%emt 0:06:55]} Re8 {[%emt 0:03:41][%cal Ba8e8,Be8e7,Be7b7][%mdl 32]} 20. Nb2 {[%emt 0:02:09]} ({Better is} 20. Ne3 $18) 20... Be7 {[%emt 0:04:01]} 21. Bxe7+ {[%emt 0:10:59]} Rxe7 {[%emt 0:00:44]} 22. Nd3 {[%emt 0:00:05]} Qb5 {[%emt 0:08:43]} 23. Rc5 {[%emt 0:06:28]} ({White should try} 23. Qd1 $16) 23... Qxb3 $11 {[%emt 0:00:56]} 24. a6 {[%emt 0:00:01]} Rg8 {[%emt 0:00:46][%cal Bh8g8,Bg8g4,Bg4d4][%mdl 32]} 25. axb7 {[%emt 0:00:18][%cal Oa1a3]} Rxb7 {[%emt 0:00:18]} 26. Rxc6 {[%emt 0:07:55] Strongly threatening Rc8+.} Rg4 {[%emt 0:00:08]} 27. Qe2 $1 {[%emt 0:00:51]} Kg7 {[%emt 0:00:59]} ({Don't play} 27... Rxh4 28. g3 Ne7 29. Rcc1 $16) (27... Rxd4 $2 28. Rc8+ Kg7 29. Qxh5 $1 $18) 28. f3 $2 {[%emt 0:01:51][%mdl 8192]} (28. Qd2 $1 $11 {and White has nothing to worry.}) 28... Rxd4 $19 {[%emt 0:01:07]} 29. Nc5 {[%emt 0:00:17]} Nf4 $1 {[%emt 0:00:47]} 30. Qf2 {[%emt 0:00:52]} Qb2 {[%emt 0:00:23]} 31. Nxb7 {[%emt 0:01:36]} (31. Qxb2 $142 Rxb2 32. Rc7) 31... Qxa1+ {[%emt 0:00:09]} 32. Kh2 {[%emt 0:00:01]} Ng6 $2 {[%emt 0:00:29]} (32... Rd1 33. Qe3 Ng6) 33. g4 $2 {[%emt 0:00:42]} (33. Rc1 $19 Qxc1 34. Qxd4) 33... Nxe5 {[%emt 0:00:51] Black mates.} 34. Rc2 {[%emt 0:00:52]} fxg4 {[%emt 0:00:17]} 35. Qe3 {[%emt 0:00:14]} Nxf3+ {[%emt 0:00:24]} 36. Kg2 {[%emt 0:00:02] [#]} Rd1 {[%emt 0:00:29] Weighted Error Value: White=0.70/Black=0.23 (precise)} (36... Rd3 $142 $3 {[%mdl 512]} 37. Qf2 Ne1+ 38. Kg1 Nxc2+ 39. Kg2 {[#]} Rh3 $1 40. Qf4 Ne1+ 41. Kf1 Nd3+ 42. Qc1 Qxc1+ 43. Kg2 Qh1#) 0-1

[Event "FRA-ch Teams Top 16-A 2022"]
[Site "Chartres"]
[Date "2022.06.15"]
[Round "7.7"]
[White "Maze, Sebastien"]
[Black "Demuth, Adrien"]
[Result "1/2-1/2"]
[ECO "C00"]
[WhiteElo "2519"]
[BlackElo "2493"]
[Annotator "TA"]
[PlyCount "37"]
[EventDate "2022.06.09"]
[EventType "team-tourn"]
[EventCountry "FRA"]
[SourceTitle "playchess.com"]
[Source "ChessBase"]
[SourceQuality "1"]
[TimeControl "40/5400+30:1800+30"]

{[%evp 27,37,-21,-4,-8,0,-2,0,-37,-49,-62,-49,-71]} 1. e4 {[%emt 0:00:10]} c5 {[%emt 0:00:05]} 2. Nf3 {[%emt 0:00:27]} e6 {[%emt 0:00:06]} 3. d3 {[%emt 0:01:07]} d5 {[%emt 0:00:52]} 4. Nbd2 {[%emt 0:00:39]} Nc6 {[%emt 0:00:06]} 5. g3 {[%emt 0:00:04]} Nf6 {[%emt 0:00:19]} 6. Bg2 {[%emt 0:00:06]} Be7 {[%emt 0:00:03]} 7. O-O {[%emt 0:00:06]} O-O {[%emt 0:00:04]} 8. Re1 {[%emt 0:00:06]} b5 {[%emt 0:00:33]} 9. e5 {[%emt 0:00:23]} Nd7 {[%emt 0:00:05]} 10. Nf1 {[%emt 0:00:02]} a5 {[%emt 0:00:06]} 11. h4 {[%emt 0:00:25]} b4 {[%emt 0:05:00]} 12. Bf4 {[%emt 0:00:19]} a4 {[%emt 0:01:04]} 13. a3 {[%emt 0:02:00]} bxa3 {[%emt 0:04:42]} 14. bxa3 {[%emt 0:00:14]} Rb8 {[%emt 0:04:19]} 15. Ne3 {[%emt 0:07:30] C00: French: Unusual White 2nd moves.} Ba6 {[%emt 0:09:33]} 16. h5 {[%emt 0:12:51] [#]} Nd4 $146 {[%emt 0:12:30]} ({Predecessor:} 16... c4 17. d4 c3 18. Bf1 Bxf1 19. Kxf1 Na5 20. Qd3 Qc7 21. Bg5 Rfe8 22. Bxe7 Rxe7 {1-0 (46) Boettcher,C (2196)-Foerster,E (2065) Playchess.com INT 2021}) 17. c4 {[%emt 0:21:56]} dxc4 {[%emt 0:08:56]} 18. dxc4 {[%emt 0:00:09]} Nb6 {[%emt 0:09:49]} 19. Nd2 {[%emt 0:17:05] Inhibits Nb3. White did not feel at home in the position after the opening.  Weighted Error Value: White=0.14 (very precise) /Black=0.03 (flawless)} 1/2-1/2

[Event "FRA-ch Teams Top 16-A 2022"]
[Site "Chartres"]
[Date "2022.06.15"]
[Round "7.8"]
[White "Milliet, Sophie"]
[Black "Sebag, Marie"]
[Result "1/2-1/2"]
[ECO "B90"]
[WhiteElo "2410"]
[BlackElo "2472"]
[Annotator "TA"]
[PlyCount "67"]
[EventDate "2022.06.09"]
[EventType "team-tourn"]
[EventCountry "FRA"]
[SourceTitle "playchess.com"]
[Source "ChessBase"]
[SourceQuality "1"]
[TimeControl "40/5400+30:1800+30"]

{[%evp 15,67,7,29,21,29,22,28,22,27,23,26,25,49,34,48,0,0,0,11,11,14,16,18,8,13,12,13,-20,-10,-27,-18,-22,0,0,0,0,0,0,0,0,8,5,8,8,11,8,8,0,0,0,0,0,0,0]} 1. e4 {[%emt 0:00:03]} c5 {[%emt 0:03:47]} 2. Nf3 {[%emt 0:00:04][%cal Bg1f3,Bf3d4,Bd4b3][%mdl 32]} d6 {[%emt 0:00:03]} 3. d4 {[%emt 0:00:03]} cxd4 {[%emt 0:00:05]} 4. Nxd4 {[%emt 0:00:03]} Nf6 {[%emt 0:00:06]} 5. Nc3 {[%emt 0:00:04]} a6 {[%emt 0:00:03]} 6. Be3 {[%emt 0:00:04]} e5 {[%emt 0:00:12]} 7. Nb3 {[%emt 0:00:04]} Be6 {[%emt 0:00:14]} 8. f3 {[%emt 0:00:05]} h5 {[%emt 0:02:02]} 9. Nd5 {[%emt 0:00:17] B90: Sicilian Najdorf: Unusual White 6th moves, 6 Be3 Ng4 and 6 Be3 e5.} Bxd5 {[%emt 0:02:20]} 10. exd5 {[%emt 0:00:04]} Nbd7 {[%emt 0:00:22][%cal Bb8d7,Bd7b6,Bb6d5][%mdl 32]} 11. Qd2 {[%emt 0:00:20] White has an edge.} g6 {[%emt 0:09:44]} 12. O-O-O {[%emt 0:00:31]} Nb6 {[%emt 0:02:02]} 13. Kb1 {[%emt 0:00:19]} Nbxd5 {[%emt 0:03:01]} 14. Bg5 {[%emt 0:00:10]} Be7 $1 {[%emt 0:01:20]} 15. Bd3 $1 {[%emt 0:00:48][%mdl 4] is currently scoring better than 15.g3.} (15. Bc4 $14) 15... Qc7 $11 {[%emt 0:04:23]} 16. Rhe1 {[%emt 0:02:26]} O-O-O {[%emt 0:08:33]} 17. c4 {[%emt 0:09:19]} Nf4 {[%emt 0:08:03]} 18. Bxf4 {[%emt 0:02:34]} exf4 {[%emt 0:00:04]} 19. Qxf4 {[%emt 0:00:40][%cal Oc4c5] Black must now prevent c5!} Rhe8 {[%emt 0:00:57]} 20. Rc1 {[%emt 0:15:44]} Kb8 {[%emt 0:01:08] [#]} 21. Be4 $146 {[%emt 0:30:27]} ({Predecessor:} 21. Qd4 Nd7 22. Be4 Bf6 23. Qd2 Nc5 24. Bd5 Na4 25. Rc2 Rxe1+ 26. Qxe1 Nb6 27. Qe4 Nxd5 28. Qxd5 {0-1 (48) Esipenko,A (2723)-Deac,B (2679) Chess.com INT 2022}) 21... Nxe4 {[%emt 0:07:39]} 22. Qxe4 {[%emt 0:00:11]} Bg5 {[%emt 0:07:58][%csl LRc1,LRe4]} 23. Qxe8 {[%emt 0:00:07] The position is equal.} Bxc1 {[%emt 0:00:34]} 24. Qe4 {[%emt 0:00:38]} Bh6 {[%emt 0:02:09]} 25. Qd4 {[%emt 0:04:04]} Rc8 {[%emt 0:14:57]} 26. Re4 {[%emt 0:02:11]} d5 {[%emt 0:06:06]} 27. Qxd5 {[%emt 0:00:09]} Rd8 {[%emt 0:00:36]} 28. Qe5 {[%emt 0:00:34]} Qxe5 {[%emt 0:00:17]} 29. Rxe5 {[%emt 0:00:04] KRB-KRN} Bf4 {[%emt 0:00:26][%csl LRe5,LRh2]} 30. Re7 {[%emt 0:07:00]} Bxh2 {[%emt 0:01:57]} 31. Kc2 {[%emt 0:00:07]} Rc8 {[%emt 0:01:04]} 32. Kd3 {[%emt 0:05:38]} Rc7 {[%emt 0:00:06]} 33. Re8+ {[%emt 0:01:26]} Ka7 $1 {[%emt 0:00:27]} 34. a4 {[%emt 0:05:18] Weighted Error Value: White=0.05 (flawless) /Black=0.03 (flawless)} 1/2-1/2

[Event "FRA-ch Teams Top 16-A 2022"]
[Site "Chartres"]
[Date "2022.06.15"]
[Round "7.9"]
[White "Korobov, Anton"]
[Black "Sochacki, Christophe"]
[Result "1-0"]
[ECO "D27"]
[WhiteElo "2671"]
[BlackElo "2493"]
[Annotator "TA"]
[PlyCount "77"]
[EventDate "2022.06.09"]
[EventType "team-tourn"]
[EventCountry "FRA"]
[SourceTitle "playchess.com"]
[Source "ChessBase"]
[SourceQuality "1"]
[TimeControl "40/5400+30:1800+30"]

{[%evp 11,77,25,30,16,17,16,24,12,12,6,13,0,2,-23,0,0,0,0,0,-4,0,0,0,0,0,0,0,-19,-12,-16,0,-42,0,0,0,0,26,15,394,413,403,407,1221,1178,1113,977,1476,1385,1289,1200,1185,1095,2403,2327,1895,584,564,581,570,567,568,546,547,516,566,560,520,494]} 1. d4 {[%emt 0:00:05]} d5 {[%emt 0:00:16]} 2. c4 {[%emt 0:00:07]} dxc4 {[%emt 0:00:06]} 3. Nf3 {[%emt 0:00:12]} Nf6 {[%emt 0:00:06]} 4. e3 {[%emt 0:00:06]} e6 {[%emt 0:00:48]} 5. Bxc4 {[%emt 0:00:09]} c5 {[%emt 0:01:05]} 6. O-O {[%emt 0:00:07]} a6 {[%emt 0:00:32]} 7. Be2 {[%emt 0:01:05] D27: Queen's Gambit Accepted: Classical main line: 7 e4!? and 7 a4.} Nbd7 {[%emt 0:27:02]} 8. b3 {[%emt 0:00:52]} b6 {[%emt 0:00:11]} 9. Bb2 {[%emt 0:00:22] White has an edge.} Bb7 {[%emt 0:00:08]} 10. Nbd2 {[%emt 0:00:37]} Be7 {[%emt 0:02:13] [#]} 11. Bd3 $146 {[%emt 0:21:55]} ({Predecessor:} 11. Rc1 O-O 12. Qc2 Rc8 13. Qb1 cxd4 14. Nxd4 Rxc1 15. Rxc1 Qa8 16. Bf3 Bxf3 17. N2xf3 {½-½ (32) Maghsoodloo,P (2701)-Aronian,L (2772) Warsaw 2021}) 11... cxd4 {[%emt 0:10:08]} 12. Nxd4 {[%emt 0:02:29]} O-O {[%emt 0:00:24]} 13. Qe2 {[%emt 0:01:35]} Nc5 {[%emt 0:00:59]} 14. Bc2 {[%emt 0:00:56]} Qd5 {[%emt 0:11:35][%csl Gb7][%cal Rd5g2]} 15. f3 {[%emt 0:02:33]} Qh5 {[%emt 0:00:53]} 16. Nc4 {[%emt 0:02:30]} Nd5 {[%emt 0:06:22]} 17. Rad1 {[%emt 0:03:47]} Rac8 {[%emt 0:00:43]} 18. e4 {[%emt 0:03:14]} Nf4 {[%emt 0:00:04]} 19. Qe1 {[%emt 0:00:38]} b5 {[%emt 0:02:45]} 20. Ne3 {[%emt 0:02:15]} Rfd8 {[%emt 0:01:16][%cal Oa6a5]} 21. Kh1 {[%emt 0:07:37]} (21. b4 $5 {[%cal Rb4c5]} Na4 22. Ba1 $15) 21... Bg5 {[%emt 0:06:49]} 22. b4 $36 {[%emt 0:07:46][%mdl 2048] White is pushing.} Na4 {[%emt 0:01:26]} 23. Ba1 {[%emt 0:00:51]} Ng6 {[%emt 0:01:52]} 24. Bb3 {[%emt 0:02:02][%cal Od4e6] Nxe6! is the strong threat.} Kh8 $2 {[%emt 0:00:37][%mdl 8192] [#] Black cannot hold the game after this.} ({Much less strong is} 24... Bf4 25. g3 Bxe3 26. Qxe3 $16) (24... Nf8 $1 $11 {and Black has nothing to worry.}) 25. Bxe6 $1 $18 {[%emt 0:03:04][%mdl 512]} fxe6 {[%emt 0:03:03]} 26. Nxe6 {[%emt 0:00:07][%mdl 64] Discovered Attack} Bh4 {[%emt 0:08:42]} (26... Rxd1 $142 27. Qxd1 Ne5) 27. Rxd8+ {[%emt 0:02:19] White is clearly winning.} Rxd8 {[%emt 0:00:03]} 28. g3 {[%emt 0:00:44][%cal Bg2g3,Bg3h4][%mdl 32]} Ne5 {[%emt 0:05:02]} 29. gxh4 {[%emt 0:00:57]} Re8 {[%emt 0:02:02] [#]} 30. Nxg7 $1 {[%emt 0:01:10][%mdl 512]} Kxg7 {[%emt 0:00:02]} 31. Qg3+ {[%emt 0:00:20]} Kf7 {[%emt 0:00:08]} 32. Nf5 {[%emt 0:00:44] White wants to mate with Qg7+.} Qg6 {[%emt 0:01:39] Inhibits Qg7+.} 33. Bxe5 {[%emt 0:00:21]} (33. Qf4 $142) 33... Qxg3 {[%emt 0:00:16]} 34. Bxg3 {[%emt 0:00:19]} Kf6 {[%emt 0:00:35]} 35. Nd6 {[%emt 0:00:43]} Re7 {[%emt 0:00:03]} 36. Nxb7 {[%emt 0:02:09]} Rxb7 {[%emt 0:00:05]} 37. Rc1 {[%emt 0:00:34]} Rd7 {[%emt 0:00:50]} 38. Rc6+ {[%emt 0:00:07]} Kf7 {[%emt 0:00:05]} 39. e5 {[%emt 0:00:26] Weighted Error Value: White=0.24 (precise) /Black=0.28 (precise)} 1-0